fUSD/lending_fUSD_20250606
["ID","MTS","AMOUNT","RATE_DAILY","PERIOD"]
[364671647,1749195041536,-481.30586123,0.00030164,7]
[364671648,1749195041546,-480.0,0.00030164,7]
[364671649,1749195041555,-480.0,0.00030164,7]
[364671650,1749195041565,-169.543339,0.00030164,7]
[364671651,1749195041575,-480.0,0.00030164,7]
[364671652,1749195041585,-480.0,0.00030164,7]
[364671653,1749195041595,-151.0,0.00030164,7]
[364671654,1749195041605,-480.0,0.00030164,7]
[364671655,1749195041615,-480.0,0.00030164,7]
[364671656,1749195041625,-151.0,0.00030164,7]
[364671657,1749195041635,-250.0,0.00030164,7]
[364671658,1749195041645,-480.0,0.00030164,7]
[364671659,1749195041655,-480.0,0.00030164,7]
[364671660,1749195041665,-480.0,0.00030164,7]
[364671661,1749195041676,-480.0,0.00030164,7]
[364671662,1749195041686,-480.0,0.00030164,7]
[364671663,1749195041695,-480.0,0.00030164,7]
[364671664,1749195041704,-151.0,0.00030164,7]
[364671665,1749195041713,-480.0,0.00030164,7]
[364671666,1749195041723,-480.0,0.00030164,7]
[364671667,1749195041733,-620.56550188,0.00030164,7]
[364671668,1749195041743,-438.90016387,0.00030164,7]
[364671669,1749195041753,-151.0,0.00030164,7]
[364671670,1749195041763,-480.0,0.00030164,7]
[364671671,1749195041772,-483.99946189,0.00030164,7]
[364671672,1749195041783,-480.0,0.00030164,7]
[364671673,1749195041805,-480.0,0.00030164,7]
[364671674,1749195041815,-639.09,0.00030164,7]
[364671675,1749195041824,-448.89377785,0.00030164,7]
[364671676,1749195041834,-480.0,0.00030164,7]
[364671677,1749195041844,-480.0,0.00030164,7]
[364671678,1749195041853,-480.0,0.00030164,7]
[364671679,1749195041863,-480.0,0.00030164,7]
[364671680,1749195041872,-480.0,0.00030164,7]
[364671681,1749195041882,-480.0,0.00030164,7]
[364671682,1749195041892,-480.0,0.00030164,7]
[364671683,1749195041902,-488.15516982,0.00030164,7]
[364671684,1749195041912,-484.25389279,0.00030164,7]
[364671685,1749195041922,-480.0,0.00030164,7]
[364671686,1749195041932,-491.05088204,0.00030164,7]
[364671687,1749195041942,-491.99101096,0.00030164,7]
[364671688,1749195041952,-480.0,0.00030164,7]
[364671689,1749195041962,-151.0,0.00030164,7]
[364671690,1749195041972,-496.7189745,0.00030164,7]
[364671691,1749195041982,-498.22459929,0.00030164,7]
[364671692,1749195041992,-151.0,0.00030164,7]
[364671693,1749195042002,-480.0,0.00030164,7]
[364671694,1749195042012,-480.0,0.00030164,7]
[364671695,1749195042022,-295.60632418,0.00030164,7]
[364671696,1749195042032,-480.0,0.00030164,7]
[364671697,1749195042041,-480.0,0.00030164,7]
[364671698,1749195042051,-151.0,0.00030164,7]
[364671699,1749195042061,-492.70743458,0.00030164,7]
[364671700,1749195042071,-480.0,0.00030164,7]
[364671701,1749195042080,-207.93167265,0.00030164,7]
[364671702,1749195042090,-348.99824157,0.00030164,7]
[364671703,1749195042100,-480.0,0.00030164,7]
[364671704,1749195042109,-480.0,0.00030164,7]
[364671705,1749195042119,-480.0,0.00030164,7]
[364671706,1749195042129,-480.0,0.00030164,7]
[364671707,1749195042139,-480.0,0.00030164,7]
[364671708,1749195042149,-480.0,0.00030164,7]
[364671709,1749195042159,-480.0,0.00030164,7]
[364671710,1749195042169,-502.21832714,0.00030164,7]
[364671711,1749195042179,-492.39931651,0.00030164,7]
[364671712,1749195042188,-480.0,0.00030164,7]
[364671713,1749195042198,-480.0,0.00030164,7]
[364671714,1749195042208,-486.43758085,0.00030164,7]
[364671715,1749195042217,-497.879911,0.00030164,7]
[364671716,1749195042227,-480.0,0.00030164,7]
[364671717,1749195042237,-456.48427398,0.00030164,7]
[364671718,1749195042246,-480.0,0.00030164,7]
[364671719,1749195042256,-480.0,0.00030164,7]
[364671720,1749195042266,-480.0,0.00030164,7]
[364671721,1749195042276,-480.0,0.00030164,7]
[364671722,1749195042286,-155.79641091,0.00030164,7]
[364671723,1749195042296,-496.35132524,0.00030164,7]
[364671724,1749195042307,-480.0,0.00030164,7]
[364671725,1749195042317,-443.62402992,0.00030164,7]
[364671726,1749195042327,-484.47396071,0.00030164,7]
[364671727,1749195042337,-480.0,0.00030164,7]
[364671728,1749195042347,-480.0,0.00030164,7]
[364671729,1749195042356,-480.0,0.00030164,7]
[364671730,1749195042366,-294.85269603,0.00030164,7]
[364671731,1749195042376,-495.45435143,0.00030164,7]
[364671732,1749195042387,-480.0,0.00030164,7]
[364671733,1749195042396,-152.209339,0.00030164,7]
[364671734,1749195042406,-421.134473,0.00030164,7]
[364671735,1749195042418,-489.95522101,0.00030164,7]
[364671736,1749195042428,-494.51200056,0.00030164,7]
[364671737,1749195042439,-178.33895385,0.00030164,7]
[364671738,1749195042450,-504.60064045,0.00030164,7]
[364671739,1749195042460,-421.134473,0.00030164,7]
[364671740,1749195042470,-480.0,0.00030164,7]
[364671741,1749195042483,-151.0,0.00030164,7]
[364671742,1749195042493,-480.0,0.00030164,7]
[364671743,1749195042503,-480.0,0.00030164,7]
[364671744,1749195042513,-151.0,0.00030164,7]
[364671745,1749195042523,-490.7865181,0.00030164,7]
[364671746,1749195042533,-480.0,0.00030164,7]
[364671747,1749195042544,-480.0,0.00030164,7]
[364671748,1749195042554,-152.50780307,0.00030164,7]
[364671749,1749195042563,-535.07,0.00030164,7]
[364671750,1749195042574,-480.0,0.00030164,7]
[364671751,1749195042584,-485.54724894,0.00030164,7]
[364671752,1749195042594,-495.36474966,0.00030164,7]
[364671753,1749195042604,-480.0,0.00030164,7]
[364671754,1749195042614,-499.8665414,0.00030164,7]
[364671755,1749195042624,-496.64962129,0.00030164,7]
[364671756,1749195042634,-480.0,0.00030164,7]
[364671757,1749195042643,-487.54450385,0.00030164,7]
[364671758,1749195042653,-498.62490576,0.00030164,7]
[364671759,1749195042662,-480.0,0.00030164,7]
[364671760,1749195042672,-151.0,0.00030164,7]
[364671761,1749195042682,-480.0,0.00030164,7]
[364671762,1749195042692,-338.86547354,0.00030164,7]
[364671763,1749195042701,-335.222175,0.00030164,7]
[364671764,1749195042711,-496.22897132,0.00030164,7]
[364671765,1749195042721,-335.222175,0.00030164,7]
[364671766,1749195042730,-480.0,0.00030164,7]
[364671767,1749195042740,-480.0,0.00030164,7]
[364671768,1749195042750,-480.0,0.00030164,7]
[364671769,1749195042761,-495.89585494,0.00030164,7]
[364671770,1749195042772,-165.69601541,0.00030164,7]
[364671771,1749195042782,-494.55999341,0.00030164,7]
[364671772,1749195042795,-497.07365701,0.00030164,7]
[364671773,1749195042805,-480.0,0.00030164,7]
[364671775,1749195042814,-480.0,0.00030164,7]
[364671776,1749195042823,-480.0,0.00030164,7]
[364671777,1749195042833,-480.0,0.00030164,7]
[364671778,1749195042842,-480.0,0.00030164,7]
[364671779,1749195042851,-480.0,0.00030164,7]
[364671780,1749195042861,-480.0,0.00030164,7]
[364671781,1749195042872,-151.0,0.00030164,7]
[364671782,1749195042883,-495.7120733,0.00030164,7]
[364671783,1749195042892,-480.0,0.00030164,7]
[364671784,1749195042902,-191.964947,0.00030164,7]
[364671785,1749195042911,-378.86639128,0.00030164,7]
[364671786,1749195042921,-480.0,0.00030164,7]
[364671787,1749195042934,-607.32,0.00030164,7]
[364671788,1749195042952,-227.336484,0.00030164,7]
[364671789,1749195042962,-191.964947,0.00030164,7]
[364671790,1749195042972,-497.91163239,0.00030164,7]
[364671791,1749195042981,-489.00516933,0.00030164,7]
[364671792,1749195042991,-303.9669851,0.00030164,7]
[364671793,1749195043000,-497.77677999,0.00030164,7]
[364671794,1749195043009,-502.36948059,0.00030164,7]
[364671795,1749195043019,-151.0,0.00030164,7]
[364671796,1749195043029,-151.0,0.00030164,7]
[364671797,1749195043039,-480.0,0.00030164,7]
[364671798,1749195043048,-480.0,0.00030164,7]
[364671799,1749195043057,-480.0,0.00030164,7]
[364671800,1749195043067,-253.567617,0.00030164,7]
[364671801,1749195043076,-480.0,0.00030164,7]
[364671802,1749195043086,-253.567617,0.00030164,7]
[364671803,1749195043098,-480.0,0.00030164,7]
[364671804,1749195043112,-480.0,0.00030164,7]
[364671805,1749195043122,-480.0,0.00030164,7]
[364671806,1749195043132,-480.0,0.00030164,7]
[364671807,1749195043142,-480.0,0.00030164,7]
[364671808,1749195043152,-486.25828105,0.00030164,7]
[364671809,1749195043161,-480.0,0.00030164,7]
[364671810,1749195043170,-1000.0,0.00030164,7]
[364671811,1749195043180,-480.0,0.00030164,7]
[364671812,1749195043189,-499.96858413,0.00030164,7]
[364671813,1749195043199,-480.0,0.00030164,7]
[364671814,1749195043208,-480.0,0.00030164,7]
[364671815,1749195043217,-151.4469,0.00030164,7]
[364671816,1749195043227,-151.0,0.00030164,7]
[364671817,1749195043300,-151.0,0.00030164,7]
[364671818,1749195043310,-151.0,0.00030164,7]
[364671819,1749195043320,-480.0,0.00030164,7]
[364671820,1749195043329,-151.0,0.00030164,7]
[364671821,1749195043339,-480.0,0.00030164,7]
[364671822,1749195043349,-484.28061092,0.00030164,7]
[364671823,1749195043358,-743.81,0.00030164,7]
[364671824,1749195043368,-480.0,0.00030164,7]
[364671825,1749195043379,-496.10760876,0.00030164,7]
[364671826,1749195043388,-480.0,0.00030164,7]
[364671827,1749195043398,-151.0,0.00030164,7]
[364671828,1749195043408,-151.0,0.00030164,7]
[364671829,1749195043417,-480.0,0.00030164,7]
[364671830,1749195043427,-480.0,0.00030164,7]
[364671831,1749195043437,-151.0,0.00030164,7]
[364671832,1749195043446,-151.0,0.00030164,7]
[364671833,1749195043456,-524.59,0.00030164,7]
[364671834,1749195043467,-212.018929,0.00030164,7]
[364671835,1749195043477,-212.018929,0.00030164,7]
[364671836,1749195043487,-212.018929,0.00030164,7]
[364671837,1749195043497,-212.018929,0.00030164,7]
[364671838,1749195043507,-156.114395,0.00030164,7]
[364671839,1749195043517,-494.47936792,0.00030164,7]
[364671840,1749195043527,-480.0,0.00030164,7]
[364671841,1749195043536,-480.0,0.00030164,7]
[364671842,1749195043546,-168.67287334,0.00030164,7]
[364671843,1749195043556,-480.0,0.00030164,7]
[364671844,1749195043566,-480.0,0.00030164,7]
[364671845,1749195043576,-480.0,0.00030164,7]
[364671846,1749195043585,-480.0,0.00030164,7]
[364671847,1749195043596,-480.0,0.00030164,7]
[364671848,1749195043606,-1194.15,0.00030164,7]
[364671849,1749195043616,-480.0,0.00030164,7]
[364671850,1749195043627,-436.80707198,0.00030164,7]
[364671851,1749195043663,-480.0,0.00030164,7]
[364671852,1749195043674,-495.22871544,0.00030164,7]
[364671853,1749195043685,-480.0,0.00030164,7]
[364671854,1749195043695,-151.0,0.00030164,7]
[364671855,1749195043705,-266.269476,0.00030164,7]
[364671856,1749195043714,-480.0,0.00030164,7]
[364671857,1749195043724,-151.0,0.00030164,7]
[364671858,1749195043733,-739.76,0.00030164,7]
[364671859,1749195043742,-151.0,0.00030164,7]
[364671860,1749195043752,-151.0,0.00030164,7]
[364671861,1749195043762,-480.0,0.00030164,7]
[364671862,1749195043771,-151.0,0.00030164,7]
[364671863,1749195043780,-151.0,0.00030164,7]
[364671864,1749195043791,-480.0,0.00030164,7]
[364671865,1749195043801,-151.0,0.00030164,7]
[364671866,1749195043810,-151.0,0.00030164,7]
[364671867,1749195043819,-151.0,0.00030164,7]
[364671868,1749195043828,-480.0,0.00030164,7]
[364671869,1749195043838,-151.0,0.00030164,7]
[364671870,1749195043847,-151.0,0.00030164,7]
[364671871,1749195043856,-480.0,0.00030164,7]
[364671872,1749195043867,-548.8,0.00030164,7]
[364671873,1749195043878,-480.0,0.00030164,7]
[364671874,1749195043887,-480.0,0.00030164,7]
[364671875,1749195043896,-596.13,0.00030164,7]
[364671876,1749195043906,-480.0,0.00030164,7]
[364671877,1749195043915,-480.0,0.00030164,7]
[364671878,1749195043924,-728.32,0.00030164,7]
[364671879,1749195043933,-480.0,0.00030164,7]
[364671880,1749195043942,-480.0,0.00030164,7]
[364671881,1749195043951,-480.0,0.00030164,7]
[364671882,1749195043961,-480.0,0.00030164,7]
[364671883,1749195043970,-495.92740712,0.00030164,7]
[364671884,1749195043980,-151.0,0.00030164,7]
[364671885,1749195043989,-151.0,0.00030164,7]
[364671886,1749195043998,-480.0,0.00030164,7]
[364671887,1749195044008,-543.43,0.00030164,7]
[364671888,1749195044017,-480.0,0.00030164,7]
[364671889,1749195044026,-151.0,0.00030164,7]
[364671890,1749195044036,-151.0,0.00030164,7]
[364671891,1749195044045,-502.62,0.00030164,7]
[364671892,1749195044055,-480.0,0.00030164,7]
[364671893,1749195044064,-480.0,0.00030164,7]
[364671894,1749195044073,-480.0,0.00030164,7]
[364671895,1749195044083,-151.0,0.00030164,7]
[364671896,1749195044092,-301.163539,0.00030164,7]
[364671897,1749195044102,-480.0,0.00030164,7]
[364671898,1749195044112,-480.0,0.00030164,7]
[364671899,1749195044121,-501.9438728,0.00030164,7]
[364671900,1749195044131,-151.0,0.00030164,7]
[364671901,1749195044140,-164.656632,0.00030164,7]
[364671902,1749195044150,-480.0,0.00030164,7]
[364671903,1749195044159,-480.0,0.00030164,7]
[364671904,1749195044169,-480.0,0.00030164,7]
[364671905,1749195044179,-480.0,0.00030164,7]
[364671906,1749195044188,-480.0,0.00030164,7]
[364671907,1749195044197,-486.43,0.00030164,7]
[364671908,1749195044206,-480.0,0.00030164,7]
[364671909,1749195044216,-731.51,0.00030164,30]
[364671910,1749195044226,-480.0,0.00030164,7]
[364671911,1749195044235,-872.44,0.00030164,7]
[364671912,1749195044245,-480.0,0.00030164,7]
[364671913,1749195044254,-480.0,0.00030164,7]
[364671914,1749195044263,-480.0,0.00030164,7]
[364671915,1749195044273,-480.0,0.00030164,7]
[364671916,1749195044282,-480.0,0.00030164,7]
[364671917,1749195044291,-480.0,0.00030164,7]
[364671918,1749195044301,-480.0,0.00030164,7]
[364671919,1749195044310,-844.68,0.00030164,7]
[364671920,1749195044320,-151.0,0.00030164,7]
[364671921,1749195044329,-151.0,0.00030164,7]
[364671922,1749195044339,-266.05293358,0.00030164,7]
[364671923,1749195044348,-480.0,0.00030164,7]
[364671924,1749195044358,-936.662706,0.00030164,7]
[364671925,1749195044367,-936.662706,0.00030164,7]
[364671926,1749195044378,-472.22186935,0.00030164,7]
[364671927,1749195044389,-480.0,0.00030164,7]
[364671928,1749195044399,-936.662706,0.00030164,7]
[364671929,1749195044408,-488.14632636,0.00030164,7]
[364671930,1749195044418,-936.662706,0.00030164,7]
[364671931,1749195044428,-480.0,0.00030164,7]
[364671932,1749195044438,-480.0,0.00030164,7]
[364671933,1749195044447,-480.0,0.00030164,7]
[364671934,1749195044458,-480.0,0.00030164,7]
[364671935,1749195044468,-151.0,0.00030164,7]
[364671936,1749195044478,-151.0,0.00030164,7]
[364671937,1749195044488,-480.0,0.00030164,7]
[364671938,1749195044498,-151.0,0.00030164,7]
[364671939,1749195044507,-480.0,0.00030164,7]
[364671940,1749195044517,-480.0,0.00030164,7]
[364671941,1749195044527,-480.0,0.00030164,7]
[364671942,1749195044537,-480.0,0.00030164,7]
[364671943,1749195044548,-480.0,0.00030164,7]
[364671944,1749195044558,-151.0,0.00030164,7]
[364671945,1749195044568,-151.0,0.00030164,7]
[364671946,1749195044577,-481.42441416,0.00030164,7]
[364671947,1749195044587,-484.17425303,0.00030164,7]
[364671948,1749195044597,-480.0,0.00030164,7]
[364671949,1749195044607,-480.0,0.00030164,7]
[364671950,1749195044616,-480.0,0.00030164,7]
[364671951,1749195044626,-480.0,0.00030164,7]
[364671952,1749195044637,-480.0,0.00030164,7]
[364671953,1749195044646,-211.33821141,0.00030164,7]
[364671954,1749195044657,-480.0,0.00030164,7]
[364671955,1749195044667,-889.06,0.00030164,7]
[364671956,1749195044677,-480.0,0.00030164,7]
[364671957,1749195044687,-480.0,0.00030164,7]
[364671958,1749195044697,-480.0,0.00030164,7]
[364671959,1749195044706,-151.0,0.00030164,7]
[364671960,1749195044716,-151.0,0.00030164,7]
[364671961,1749195044725,-429.39492447,0.00030164,7]
[364671962,1749195044735,-151.0,0.00030164,7]
[364671963,1749195044745,-151.0,0.00030164,7]
[364671964,1749195044755,-480.0,0.00030164,7]
[364671965,1749195044764,-480.0,0.00030164,7]
[364671966,1749195044774,-480.0,0.00030164,7]
[364671967,1749195044784,-645.26,0.00030164,7]
[364671968,1749195044799,-480.0,0.00030164,7]
[364671969,1749195044808,-480.0,0.00030164,7]
[364671970,1749195044818,-1247.94,0.00030164,7]
[364671971,1749195044827,-480.0,0.00030164,7]
[364671972,1749195044837,-480.0,0.00030164,7]
[364671973,1749195044847,-151.0,0.00030164,7]
[364671974,1749195044857,-151.0,0.00030164,7]
[364671975,1749195044866,-153.846551,0.00030164,7]
[364671976,1749195044879,-760.34,0.00030164,7]
[364671977,1749195044889,-420.18344827,0.00030164,7]
[364671978,1749195044899,-480.0,0.00030164,7]
[364671979,1749195044909,-480.0,0.00030164,7]
[364671980,1749195044918,-480.0,0.00030164,7]
[364671981,1749195044928,-349.87284178,0.00030164,7]
[364671982,1749195044937,-767.62,0.00030164,7]
[364671983,1749195044947,-1400.52,0.00030164,7]
[364671984,1749195044958,-495.4,0.00030164,7]
[364671985,1749195044968,-480.0,0.00030164,7]
[364671986,1749195044978,-480.0,0.00030164,7]
[364671987,1749195044988,-151.719318,0.00030164,7]
[364671988,1749195044998,-480.0,0.00030164,7]
[364671989,1749195045008,-152.060433,0.00030164,7]
[364671990,1749195045019,-480.0,0.00030164,7]
[364671991,1749195045029,-1416.2,0.00030164,7]
[364671992,1749195045038,-480.0,0.00030164,7]
[364671993,1749195045048,-2160.01623,0.00030164,7]
[364671994,1749195045057,-480.0,0.00030164,7]
[364671995,1749195045067,-151.0,0.00030164,7]
[364671996,1749195045077,-480.0,0.00030164,7]
[364671997,1749195045087,-151.0,0.00030164,7]
[364671998,1749195045096,-772.23,0.00030164,7]
[364671999,1749195045106,-1026.87,0.00030164,7]
[364672000,1749195045116,-1405.79,0.00030164,7]
[364672001,1749195045125,-704.39,0.00030164,7]
[364672002,1749195045135,-480.0,0.00030164,7]
[364672003,1749195045145,-500.0,0.00030164,2]
[364672004,1749195045154,-500.0,0.00030164,2]
[364672005,1749195045164,-500.0,0.00030164,2]
[364672006,1749195045174,-500.0,0.00030164,2]
[364672007,1749195045184,-500.0,0.00030164,2]
[364672008,1749195045195,-500.0,0.00030164,2]
[364672009,1749195045204,-500.0,0.00030164,2]
[364672010,1749195045214,-500.0,0.00030164,2]
[364672011,1749195045223,-500.0,0.00030164,2]
[364672012,1749195045233,-480.0,0.00030164,7]
[364672013,1749195045243,-959.69,0.00030164,7]
[364672014,1749195045253,-480.0,0.00030164,7]
[364672015,1749195045264,-500.0,0.00030164,7]
[364672016,1749195045273,-500.0,0.00030164,7]
[364672017,1749195045283,-191.36473,0.00030164,7]
[364672018,1749195045292,-500.0,0.00030164,7]
[364672019,1749195045302,-500.0,0.00030164,7]
[364672020,1749195045311,-191.36473,0.00030164,7]
[364672021,1749195045321,-534.57,0.00030164,7]
[364672022,1749195045330,-507.73289218,0.00030164,7]
[364672023,1749195045339,-480.0,0.00030164,7]
[364672024,1749195045349,-480.0,0.00030164,7]
[364672025,1749195045358,-480.0,0.00030164,7]
[364672026,1749195045368,-151.0,0.00030164,7]
[364672027,1749195045377,-151.0,0.00030164,7]
[364672028,1749195045387,-1697.41,0.00030164,7]
[364672029,1749195045397,-191.36473,0.00030164,7]
[364672030,1749195045406,-191.36473,0.00030164,7]
[364672031,1749195045415,-151.0,0.00030164,7]
[364672032,1749195045425,-151.0,0.00030164,7]
[364672033,1749195045435,-480.0,0.00030164,7]
[364672034,1749195045445,-1684.21,0.00030164,7]
[364672035,1749195045454,-151.0,0.00030164,7]
[364672036,1749195045464,-151.0,0.00030164,7]
[364672037,1749195045474,-627.99,0.00030164,7]
[364672038,1749195045485,-2000.000568,0.00030164,7]
[364672039,1749195045495,-545.88167376,0.00030164,7]
[364672040,1749195045505,-151.0,0.00030164,7]
[364672041,1749195045515,-151.0,0.00030164,7]
[364672042,1749195045525,-480.0,0.00030164,7]
[364672043,1749195045534,-489.6966209,0.00030164,7]
[364672044,1749195045545,-480.0,0.00030164,7]
[364672046,1749195045555,-433.36244355,0.00030164,7]
[364672048,1749195045565,-480.0,0.00030164,7]
[364672050,1749195045575,-654.73,0.00030164,7]
[364672051,1749195045585,-751.32,0.00030164,7]
[364672052,1749195045595,-480.0,0.00030164,7]
[364672053,1749195045605,-151.0,0.00030164,7]
[364672054,1749195045615,-480.0,0.00030164,7]
[364672055,1749195045625,-151.0,0.00030164,7]
[364672056,1749195045636,-480.0,0.00030164,7]
[364672057,1749195045647,-873.28,0.00030164,7]
[364672059,1749195045656,-480.0,0.00030164,7]
[364672060,1749195045666,-489.03950304,0.00030164,7]
[364672061,1749195045676,-162.714515,0.00030164,7]
[364672062,1749195045686,-480.0,0.00030164,7]
[364672063,1749195045695,-480.0,0.00030164,7]
[364672065,1749195045705,-1201.48,0.00030164,7]
[364672066,1749195045715,-480.0,0.00030164,7]
[364672067,1749195045725,-480.0,0.00030164,7]
[364672068,1749195045735,-480.0,0.00030164,7]
[364672069,1749195045744,-480.0,0.00030164,7]
[364672070,1749195045754,-480.0,0.00030164,7]
[364672071,1749195045764,-480.0,0.00030164,7]
[364672072,1749195045774,-2050.82958828,0.00030164,7]
[364672073,1749195045783,-480.0,0.00030164,7]
[364672074,1749195045796,-864.22,0.00030164,7]
[364672075,1749195045805,-791.03,0.00030164,7]
[364672076,1749195045815,-480.0,0.00030164,7]
[364672077,1749195045824,-480.0,0.00030164,7]
[364672078,1749195045833,-480.0,0.00030164,7]
[364672079,1749195045843,-151.0,0.00030164,7]
[364672080,1749195045853,-480.0,0.00030164,7]
[364672081,1749195045862,-480.0,0.00030164,7]
[364672082,1749195045872,-1004.71,0.00030164,7]
[364672083,1749195045883,-480.0,0.00030164,7]
[364672084,1749195045893,-1800.3,0.00030164,7]
[364672085,1749195045903,-863.38,0.00030164,7]
[364672086,1749195045912,-480.0,0.00030164,7]
[364672087,1749195045922,-480.0,0.00030164,7]
[364672088,1749195045931,-1214.39,0.00030164,7]
[364672089,1749195045940,-480.0,0.00030164,7]
[364672090,1749195045950,-480.0,0.00030164,7]
[364672091,1749195045960,-508.96,0.00030164,7]
[364672092,1749195045970,-151.0,0.00030164,7]
[364672093,1749195045979,-480.0,0.00030164,7]
[364672094,1749195045989,-480.0,0.00030164,7]
[364672095,1749195045998,-480.0,0.00030164,7]
[364672096,1749195046009,-428.08939245,0.00030164,7]
[364672097,1749195046018,-480.0,0.00030164,7]
[364672098,1749195046027,-1103.57,0.00030164,7]
[364672099,1749195046037,-480.0,0.00030164,7]
[364672100,1749195046046,-151.725073,0.00030164,7]
[364672101,1749195046056,-668.08,0.00030164,7]
[364672102,1749195046065,-491.53831758,0.00030164,7]
[364672103,1749195046075,-480.0,0.00030164,7]
[364672104,1749195046084,-300.0,0.00030164,7]
[364672105,1749195046094,-1977.82,0.00030164,7]
[364672106,1749195046103,-480.0,0.00030164,7]
[364672107,1749195046113,-470.55415532,0.00030164,7]
[364672108,1749195046122,-480.0,0.00030164,7]
[364672109,1749195046133,-473.83522985,0.00030164,7]
[364672110,1749195046142,-480.0,0.00030164,7]
[364672111,1749195046152,-500.0,0.00030164,7]
[364672112,1749195046162,-500.0,0.00030164,7]
[364672113,1749195046171,-500.0,0.00030164,7]
[364672114,1749195046180,-500.0,0.00030164,7]
[364672115,1749195046189,-480.0,0.00030164,7]
[364672116,1749195046199,-480.0,0.00030164,7]
[364672117,1749195046208,-480.0,0.00030164,7]
[364672118,1749195046218,-514.22,0.00030164,7]
[364672119,1749195046227,-514.22,0.00030164,7]
[364672120,1749195046236,-480.0,0.00030164,7]
[364672121,1749195046245,-514.22,0.00030164,7]
[364672122,1749195046255,-514.22,0.00030164,7]
[364672123,1749195046264,-514.22,0.00030164,7]
[364672125,1749195046273,-1493.9,0.00030164,7]
[364672127,1749195046283,-514.22,0.00030164,7]
[364672128,1749195046292,-514.22,0.00030164,7]
[364672129,1749195046301,-480.0,0.00030164,7]
[364672130,1749195046311,-480.0,0.00030164,7]
[364672131,1749195046320,-514.22,0.00030164,7]
[364672132,1749195046329,-514.22,0.00030164,7]
[364672134,1749195046338,-480.0,0.00030164,7]
[364672135,1749195046347,-480.0,0.00030164,7]
[364672136,1749195046356,-1437.75,0.00030164,7]
[364672137,1749195046366,-487.50329774,0.00030164,7]
[364672138,1749195046375,-807.4,0.00030164,7]
[364672139,1749195046385,-481.31054065,0.00030164,7]
[364672140,1749195046394,-151.0,0.00030164,7]
[364672141,1749195046403,-151.0,0.00030164,7]
[364672142,1749195046413,-480.0,0.00030164,7]
[364672143,1749195046422,-1344.78,0.00030164,7]
[364672144,1749195046433,-489.92817646,0.00030164,7]
[364672145,1749195046442,-608.92,0.00030164,7]
[364672146,1749195046451,-480.0,0.00030164,7]
[364672147,1749195046461,-1484.88,0.00030164,7]
[364672148,1749195046471,-480.0,0.00030164,7]
[364672149,1749195046480,-1083.59,0.00030164,7]
[364672150,1749195046490,-151.0,0.00030164,7]
[364672151,1749195046501,-488.6972386,0.00030164,7]
[364672152,1749195046511,-151.0,0.00030164,7]
[364672153,1749195046520,-480.0,0.00030164,7]
[364672154,1749195046530,-480.0,0.00030164,7]
[364672155,1749195046539,-151.0,0.00030164,7]